bitfinex/quotes_BTCUSD_20250206
["timestamp","ask_amount","ask_price","bid_price","bid_amount"]
[1738855078810,0.04262629,97667.0,97639.0,0.204835]
[1738855079023,0.153591,97662.0,97643.0,0.204826]
[1738855079228,0.153594,97660.0,97638.0,0.153627]
[1738855079433,0.04262629,97667.0,97631.0,0.00122402]
[1738855079434,0.15,97665.0,97631.0,0.00122402]
[1738855079774,0.0203599,97661.0,97647.0,0.153614]
[1738855079947,0.153594,97660.0,97638.0,0.204836]
[1738855080201,0.009,97659.0,97658.0,0.0347657]
[1738855080407,0.1703599,97661.0,97658.0,0.0117657]
[1738855080628,0.1703599,97661.0,97659.0,0.153595]
[1738855080629,0.0203599,97661.0,97659.0,0.153595]
[1738855080843,0.00046351,97667.0,97666.0,0.176584]
[1738855081051,0.01245027,97685.0,97681.0,0.00053649]
[1738855081253,0.01245027,97685.0,97684.0,0.023]
[1738855082121,0.09020347,97704.0,97703.0,0.153526]
[1738855082328,0.09020347,97704.0,97703.0,0.176526]
[1738855082686,0.09020347,97704.0,97703.0,0.28005303]
[1738855082892,0.01244084,97719.0,97718.0,0.153502]
[1738855083091,0.01244084,97719.0,97718.0,0.27900565]
[1738855083298,0.01280046,97723.0,97722.0,0.163496]
[1738855083506,0.00022471,97767.0,97746.0,0.153458]
[1738855083674,0.153432,97763.0,97746.0,0.176458]
[1738855083874,0.00022471,97767.0,97746.0,0.023]
[1738855083875,0.204601,97752.0,97746.0,0.023]
[1738855084101,0.00022471,97767.0,97730.0,0.023]
[1738855084102,0.28621374,97757.0,97730.0,0.023]
[1738855084312,0.153451,97751.0,97731.0,0.10250365]
[1738855084510,0.08162474,97757.0,97746.0,0.000107]
[1738855084685,0.23506674,97757.0,97746.0,0.000107]
[1738855084899,0.153457,97747.0,97746.0,0.000107]
[1738855085284,0.15,97759.0,97746.0,0.000107]
[1738855085484,0.00022471,97767.0,97753.0,0.153446]
[1738855085485,0.15,97757.0,97753.0,0.153446]
[1738855085685,0.00022471,97767.0,97746.0,0.000107]
[1738855085686,0.15,97755.0,97746.0,0.000107]
[1738855085889,0.001,97751.0,97750.0,0.153452]
[1738855086300,0.00022471,97767.0,97763.0,0.023]
[1738855086596,0.00022471,97767.0,97755.0,0.023]
[1738855086777,0.00022471,97767.0,97746.0,0.000107]
[1738855086778,0.0006888,97767.0,97760.0,0.023]
[1738855086975,0.0006888,97767.0,97746.0,0.000107]
[1738855086976,0.0006888,97767.0,97764.0,0.15343]
[1738855087200,0.0006888,97767.0,97766.0,0.176427]
[1738855087644,0.0066888,97767.0,97766.0,0.176427]
[1738855087843,0.0026888,97767.0,97766.0,0.023]
[1738855088292,0.0066888,97767.0,97746.0,0.000107]
[1738855088675,0.0066888,97767.0,97760.0,0.023]
[1738855088853,0.0066888,97767.0,97766.0,0.023]
[1738855089054,0.0066888,97767.0,97766.0,0.27893065]
[1738855089354,0.00022471,97773.0,97772.0,0.153418]
[1738855089561,0.00022471,97830.0,97808.0,0.153361]
[1738855089562,0.0002,97809.0,97808.0,0.153361]
[1738855089764,0.0002,97809.0,97808.0,0.17738335]
[1738855089967,0.0002,97809.0,97808.0,0.1773833]
[1738855089968,0.00033919,97809.0,97808.0,0.1773833]
[1738855090226,0.00033919,97809.0,97808.0,0.27886465]
[1738855090422,0.00033919,97809.0,97808.0,0.51926465]
[1738855090636,0.00022471,97830.0,97808.0,0.51926465]
[1738855090637,0.00022471,97830.0,97819.0,0.313344]
[1738855090845,0.00022471,97830.0,97829.0,0.176328]
[1738855091060,0.13152474,97887.0,97829.0,0.176328]
[1738855091061,0.08162474,97887.0,97848.0,0.153298]
[1738855091298,0.204341,97876.0,97848.0,0.27880165]
[1738855091507,0.08162474,97887.0,97848.0,0.27880165]
[1738855091508,0.00976914,97849.0,97848.0,0.27880165]
[1738855091888,0.00976914,97849.0,97848.0,0.12550365]
[1738855091889,0.16306614,97849.0,97848.0,0.12550365]
[1738855092126,0.16306614,97849.0,97848.0,0.023]
[1738855092328,0.00976914,97849.0,97848.0,0.023]
[1738855092750,0.153325,97831.0,97829.0,0.002]
[1738855092952,0.00976914,97849.0,97832.0,0.153323]
[1738855093131,0.00976914,97849.0,97830.0,0.023]
[1738855093363,0.15,97844.0,97811.0,0.10250365]
[1738855093572,0.153329,97829.0,97816.0,0.153347]
[1738855093794,0.15,97841.0,97799.0,0.153374]
[1738855094003,0.001,97831.0,97816.0,0.153347]
[1738855094209,0.204423,97836.0,97802.0,0.153369]
[1738855094410,0.153334,97826.0,97803.0,0.10250365]
[1738855094625,0.007,97844.0,97825.0,0.08162474]
[1738855094833,0.007,97844.0,97842.0,0.153307]
[1738855095281,0.007,97844.0,97843.0,0.023]
[1738855095720,0.007,97844.0,97843.0,0.12652553]
[1738855095940,0.00976914,97849.0,97826.0,0.29282014]
[1738855096139,0.002,97831.0,97827.0,0.10250365]
[1738855096559,0.15,97847.0,97807.0,0.02000579]
[1738855096759,0.15,97847.0,97792.0,0.0468]
[1738855096760,0.354404,97845.0,97843.0,0.003]
[1738855096979,0.25350365,97844.0,97843.0,0.012]
[1738855097194,0.25250365,97844.0,97843.0,0.003]
[1738855097404,0.153347,97818.0,97807.0,0.153363]
[1738855097589,0.15,97843.0,97827.0,0.001]
[1738855097797,0.30333,97828.0,97827.0,0.001]
[1738855098003,0.10250365,97842.0,97828.0,0.204438]
[1738855098204,0.204413,97841.0,97827.0,0.001]
[1738855098416,0.00022491,97844.0,97827.0,0.001]
[1738855098830,0.00022491,97844.0,97789.0,0.01]
[1738855098831,0.15,97841.0,97803.0,0.204492]
[1738855098991,0.15,97839.0,97805.0,0.023]
[1738855099194,0.15,97839.0,97820.0,0.023]
[1738855099407,0.15,97839.0,97812.0,0.204472]
[1738855099408,0.15334,97822.0,97812.0,0.153355]
[1738855099757,0.15,97837.0,97806.0,0.10250365]
[1738855099940,0.153333,97827.0,97817.0,0.153346]
[1738855100172,0.15,97835.0,97820.0,0.023]
[1738855100349,0.15,97835.0,97811.0,0.02402225]
[1738855100566,0.15,97835.0,97791.0,0.204517]
[1738855100770,0.00013912,97841.0,97822.0,0.153338]
[1738855100917,0.00013912,97841.0,97823.0,0.023]
[1738855100918,0.15,97835.0,97823.0,0.023]
[1738855101117,0.002,97837.0,97825.0,0.023]
[1738855101323,0.002,97837.0,97812.0,0.001]
[1738855101545,0.002,97837.0,97813.0,0.12550365]
[1738855101749,0.002,97837.0,97812.0,0.001]
[1738855101903,0.002,97837.0,97813.0,0.10250365]
[1738855102159,0.002,97837.0,97835.0,0.153317]
[1738855102582,0.002,97837.0,97836.0,0.12550365]
[1738855102815,0.00013912,97841.0,97837.0,0.023]
[1738855103016,0.00013912,97841.0,97840.0,0.176311]
[1738855103225,0.00013912,97841.0,97840.0,0.2798366]
[1738855103457,0.00013912,97841.0,97840.0,0.27881465]
[1738855104461,0.00113912,97841.0,97840.0,0.28581465]
[1738855104835,0.00013912,97841.0,97840.0,0.27881465]
[1738855105041,0.00013912,97841.0,97840.0,0.43881465]
[1738855105245,1.2e-07,97841.0,97840.0,0.44881465]
[1738855105451,0.08162474,97883.0,97840.0,0.44881465]
[1738855105452,7.8e-07,97849.0,97848.0,0.163298]
[1738855105666,7.8e-07,97849.0,97848.0,0.29982328]
[1738855105870,7.8e-07,97849.0,97848.0,0.27880165]
[1738855106715,0.00600078,97849.0,97848.0,0.27880165]
[1738855106849,7.8e-07,97849.0,97848.0,0.27880165]
[1738855107252,0.00100078,97849.0,97848.0,0.28780165]
[1738855107504,0.00100078,97849.0,97848.0,0.009]
[1738855107674,7.8e-07,97849.0,97822.0,0.0203412]
[1738855107853,0.00100078,97849.0,97848.0,0.009]
[1738855108272,0.00100078,97849.0,97848.0,0.13450365]
[1738855108471,0.00100078,97849.0,97848.0,0.1395256]
[1738855108672,0.00100078,97849.0,97848.0,0.013]
[1738855108889,0.00100078,97849.0,97848.0,0.11150365]
[1738855109089,0.00100078,97849.0,97848.0,0.12550365]
[1738855109346,7.8e-07,97849.0,97848.0,0.026]
[1738855109520,7.8e-07,97849.0,97848.0,0.012]
[1738855109674,7.8e-07,97849.0,97848.0,0.156298]
[1738855109874,7.8e-07,97849.0,97848.0,0.026]
[1738855110128,7.8e-07,97849.0,97848.0,0.034]
[1738855110520,0.15352228,97849.0,97848.0,0.034]
[1738855110734,0.00022528,97849.0,97848.0,0.026]
[1738855111135,0.00222528,97849.0,97848.0,0.003]
[1738855111350,0.153306,97843.0,97842.0,0.0001069]
[1738855112000,0.15322528,97849.0,97842.0,0.0001069]
[1738855112202,0.15222528,97849.0,97845.0,0.023]
[1738855112408,0.00222528,97849.0,97845.0,0.023]
[1738855112609,0.00222528,97849.0,97844.0,0.023]
[1738855112780,0.15,97847.0,97842.0,0.0001069]
[1738855113287,0.00022528,97849.0,97842.0,0.0001069]
[1738855113288,0.15,97843.0,97842.0,0.0001069]
[1738855114791,0.15,97843.0,97842.0,0.0011069]
[1738855115449,0.1996,97843.0,97842.0,0.0011069]
[1738855115658,0.30210365,97843.0,97842.0,0.0011069]
[1738855115871,0.30210365,97843.0,97773.0,0.0762]
[1738855115872,0.303338,97823.0,97773.0,0.0762]
[1738855116078,0.40584165,97823.0,97774.0,0.09162474]
[1738855116286,0.40584165,97823.0,97783.0,0.204534]
[1738855116513,0.40584165,97823.0,97776.0,0.01031255]
[1738855116710,0.40584165,97823.0,97805.0,0.204488]
[1738855116887,0.40584165,97823.0,97808.0,0.204481]
[1738855117125,0.15,97823.0,97808.0,0.204481]
[1738855117340,0.153,97823.0,97791.0,0.023]
[1738855117547,0.15,97823.0,97815.0,0.023]
[1738855117792,0.15,97823.0,97790.0,0.29282014]
[1738855117793,0.16721754,97823.0,97790.0,0.204517]
[1738855117994,0.17021754,97823.0,97822.0,0.00113912]
[1738855118203,0.16721754,97823.0,97822.0,0.00013912]
[1738855119742,0.16921754,97823.0,97822.0,0.00013912]
[1738855120245,0.27172119,97823.0,97822.0,0.00013912]
[1738855120648,0.40642119,97823.0,97822.0,0.00013912]
[1738855121029,0.38720365,97823.0,97822.0,1.2e-07]
[1738855121431,0.38420365,97823.0,97822.0,1.2e-07]
[1738855121809,0.38820365,97823.0,97822.0,1.2e-07]
[1738855122010,0.39840151,97823.0,97822.0,1.2e-07]
[1738855122211,0.40040151,97823.0,97822.0,1.2e-07]
[1738855122533,0.49295837,97823.0,97822.0,0.00010702]
[1738855122737,0.153415,97774.0,97768.0,0.023]
[1738855122957,0.153412,97776.0,97770.0,0.023]
[1738855123163,0.15,97793.0,97759.0,0.204584]
[1738855123370,0.204536,97782.0,97769.0,0.023]
[1738855123554,0.15,97793.0,97760.0,0.10250365]
[1738855123749,0.15,97791.0,97762.0,0.204578]
[1738855123949,0.15,97791.0,97760.0,0.10250365]
[1738855123950,0.15,97791.0,97789.0,0.15339]
[1738855124149,0.15,97791.0,97766.0,0.023]
[1738855124488,0.15,97791.0,97775.0,0.023]
[1738855124691,0.004,97793.0,97774.0,0.153413]
[1738855124996,0.153404,97781.0,97774.0,0.153413]
[1738855125193,0.001,97791.0,97776.0,0.023]
[1738855125432,0.153412,97776.0,97774.0,0.00013919]
[1738855125628,0.15,97796.0,97774.0,0.00013919]
[1738855125629,0.354519,97790.0,97774.0,0.00013919]
[1738855125844,0.153413,97775.0,97774.0,0.00013919]
[1738855126394,0.204539,97781.0,97774.0,0.00013919]
[1738855126739,0.10250365,97790.0,97774.0,0.02313919]
[1738855126948,0.08162474,97814.0,97775.0,0.10250365]
[1738855127163,0.204492,97803.0,97776.0,0.023]
[1738855127366,0.1534,97784.0,97776.0,0.153411]
[1738855127576,0.08162474,97804.0,97774.0,0.00013919]
[1738855127577,0.153413,97775.0,97774.0,0.00013919]
[1738855127777,0.15,97786.0,97774.0,0.00013919]
[1738855127984,0.15,97786.0,97774.0,0.00113919]
[1738855128158,0.15,97801.0,97776.0,0.023]
[1738855128368,0.15,97792.0,97787.0,0.023]
[1738855128695,0.15,97813.0,97778.0,0.023]
[1738855128868,0.15,97788.0,97783.0,0.023]
[1738855129257,0.15,97788.0,97776.0,0.002]
[1738855129258,0.08162474,97814.0,97791.0,0.023]
[1738855129465,0.08162474,97814.0,97776.0,0.002]
[1738855129466,0.20448,97810.0,97798.0,0.153377]
[1738855129668,0.15,97808.0,97787.0,0.001]
[1738855129889,0.153378,97798.0,97791.0,0.023]
[1738855130092,0.15,97806.0,97787.0,0.001]
[1738855130292,0.08162474,97814.0,97787.0,0.001]
[1738855130293,0.153393,97788.0,97787.0,0.001]
[1738855130500,0.15,97804.0,97787.0,0.001]
[1738855130700,0.153393,97788.0,97787.0,0.001]
[1738855130905,0.25250365,97804.0,97777.0,0.023]
[1738855131111,0.25250365,97804.0,97779.0,0.023]
[1738855131315,0.25350365,97804.0,97777.0,0.023]
[1738855131524,0.153395,97787.0,97782.0,0.023]
[1738855131685,0.204514,97793.0,97779.0,0.023]
[1738855131908,0.153405,97780.0,97779.0,0.023]
[1738855132136,0.153413,97775.0,97774.0,0.00013919]
[1738855132346,0.303413,97775.0,97774.0,0.00013919]
[1738855132561,0.354517,97791.0,97774.0,0.00013919]
[1738855132562,0.078,97802.0,97774.0,0.00013919]
[1738855132763,0.01,97829.0,97774.0,0.00013919]
[1738855132764,0.001,97804.0,97787.0,0.023]
[1738855132881,0.001,97804.0,97803.0,0.023]
[1738855133088,0.001,97804.0,97803.0,0.0240225]
[1738855133536,0.001,97804.0,97793.0,0.023]
[1738855133734,0.004,97802.0,97794.0,0.10250365]
[1738855133949,0.004,97802.0,97801.0,0.023]
[1738855134154,0.153357,97811.0,97801.0,0.023]
[1738855134479,0.153357,97811.0,97794.0,0.10250365]
[1738855134480,0.303367,97804.0,97803.0,0.001]
[1738855134681,0.153383,97794.0,97782.0,0.153401]
[1738855134831,0.204482,97808.0,97785.0,0.023]
[1738855135034,0.001,97802.0,97801.0,0.002]
[1738855135872,0.153392,97789.0,97779.0,0.023]
[1738855136141,0.204501,97799.0,97775.0,0.08162474]
[1738855136314,0.204501,97799.0,97767.0,0.204567]
[1738855136315,0.15,97798.0,97782.0,0.153402]
[1738855136514,0.153386,97793.0,97779.0,0.023]
[1738855136814,0.15,97798.0,97779.0,0.023]
[1738855137013,0.15,97798.0,97767.0,0.204567]
[1738855137014,0.15338,97797.0,97782.0,0.153401]
[1738855137237,0.153382,97795.0,97782.0,0.153401]
[1738855137437,0.15,97798.0,97782.0,0.001]
[1738855137438,0.15,97796.0,97782.0,0.001]
[1738855137646,0.15,97802.0,97782.0,0.001]
[1738855137935,0.15,97796.0,97780.0,0.023]
[1738855138138,0.153392,97789.0,97782.0,0.001]
[1738855138296,0.153389,97791.0,97782.0,0.001]
[1738855138493,0.15,97796.0,97782.0,0.001]
[1738855138703,0.303381,97796.0,97774.0,0.00024599]
[1738855138910,0.303381,97796.0,97783.0,0.023]
[1738855139116,0.15,97798.0,97783.0,0.023]
[1738855139323,0.15,97798.0,97777.0,0.023]
[1738855139324,0.15,97796.0,97777.0,0.023]
[1738855139519,0.40588365,97796.0,97782.0,0.002]
[1738855139957,0.40588365,97796.0,97783.0,0.023]
[1738855140097,0.15,97796.0,97783.0,0.024]
[1738855140295,0.15,97800.0,97783.0,0.001]
[1738855140542,0.0491,97805.0,97777.0,0.023]
[1738855140746,0.0491,97805.0,97782.0,0.001]
[1738855140747,0.15,97803.0,97782.0,0.001]
[1738855140949,0.15,97799.0,97782.0,0.001]
[1738855141292,0.0826,97809.0,97774.0,0.00124599]
[1738855141293,0.0463,97831.0,97820.0,0.153341]
[1738855141401,0.08162474,97830.0,97820.0,0.153341]
[1738855141631,0.08162474,97860.0,97821.0,0.12550365]
[1738855141841,2.8e-07,97822.0,97821.0,0.40352577]
[1738855142036,0.00022528,97849.0,97848.0,0.153298]
[1738855142281,0.00022528,97849.0,97848.0,0.27880165]
[1738855142846,0.00022528,97849.0,97848.0,0.29878757]
[1738855143044,0.00036435,97849.0,97848.0,0.27880165]
[1738855143704,0.00136435,97849.0,97848.0,0.184298]
[1738855143904,0.00036435,97849.0,97848.0,0.176298]
[1738855144144,0.00036435,97849.0,97848.0,0.27880165]
[1738855144329,7.3e-07,97850.0,97849.0,0.183]
[1738855144505,7.3e-07,97850.0,97849.0,0.28550365]
[1738855144905,0.00022471,97871.0,97864.0,0.153273]
[1738855145133,0.00022471,97871.0,97864.0,0.27877665]
[1738855145710,0.00022471,97871.0,97864.0,0.25577665]
[1738855146116,0.00022471,97871.0,97864.0,0.25977665]
[1738855146592,0.00022471,97871.0,97864.0,0.28877665]
[1738855146791,0.00022471,97871.0,97864.0,0.28277665]
[1738855147374,0.00022471,97871.0,97864.0,0.29177665]
[1738855147502,0.00022471,97871.0,97864.0,0.27877665]
[1738855147700,0.00022471,97871.0,97864.0,0.28277665]
[1738855147989,0.00022471,97871.0,97864.0,0.29177665]
[1738855148163,0.204289,97901.0,97880.0,0.153248]
[1738855148413,0.08208865,97894.0,97880.0,0.10250365]
[1738855148634,0.08208865,97894.0,97864.0,0.009]
[1738855148635,0.15,97892.0,97864.0,0.013]
[1738855148839,0.204334,97879.0,97865.0,0.10250365]
[1738855149043,0.153271,97866.0,97864.0,0.009]
[1738855149223,0.15,97890.0,97851.0,0.08162474]
[1738855149478,0.00046391,97894.0,97840.0,0.108]
[1738855149479,0.153272,97865.0,97864.0,0.009]
[1738855149904,0.10250365,97889.0,97843.0,0.00102188]
[1738855150107,0.00046391,97894.0,97871.0,0.153261]
[1738855150108,0.153244,97883.0,97871.0,0.153261]
[1738855150310,0.153244,97883.0,97865.0,0.005]
[1738855150311,0.00046391,97894.0,97865.0,0.005]
[1738855150513,0.15,97892.0,97878.0,0.15325]
[1738855150647,0.00046391,97894.0,97866.0,0.10250365]
[1738855150848,0.00046391,97894.0,97866.0,0.10352534]
[1738855151251,0.00046391,97894.0,97887.0,0.153236]
[1738855151427,0.15046391,97894.0,97867.0,0.408716]
[1738855151642,0.00046391,97894.0,97870.0,0.29260987]
[1738855152028,0.00046391,97894.0,97871.0,0.10250365]
[1738855152315,0.00046391,97894.0,97892.0,0.153229]
[1738855152518,0.00046391,97894.0,97893.0,0.10352516]
[1738855152722,0.00046391,97894.0,97893.0,0.10352502]
[1738855152929,0.00146391,97894.0,97893.0,0.10250365]
[1738855153339,0.00046391,97894.0,97893.0,0.10352494]
[1738855153548,0.00146391,97894.0,97893.0,0.10250365]
[1738855153879,0.00046391,97894.0,97893.0,0.10250365]
[1738855154085,0.00046391,97894.0,97893.0,0.25573165]
[1738855154318,0.00046391,97894.0,97893.0,0.26173165]
[1738855154947,0.00046391,97894.0,97893.0,0.28473165]
[1738855155152,0.00046391,97894.0,97893.0,0.3035907]
[1738855155617,0.00046391,97894.0,97893.0,0.3065907]
[1738855156048,0.00046391,97894.0,97893.0,0.3035907]
[1738855156167,0.00046391,97894.0,97893.0,0.2805907]
[1738855156366,0.00046391,97894.0,97893.0,0.2745907]
[1738855156750,0.00046391,97894.0,97893.0,0.30775176]
[1738855156902,0.00046391,97894.0,97893.0,0.30475176]
[1738855157081,0.00046391,97894.0,97893.0,0.32775176]
[1738855157292,0.0002245,97918.0,97917.0,0.15319]
[1738855157635,7e-05,97931.0,97926.0,0.153176]
[1738855157841,0.00036339,97927.0,97926.0,0.25567965]
[1738855157966,0.00036339,97927.0,97915.0,0.02012496]
[1738855157967,0.153183,97922.0,97915.0,0.02012496]
[1738855158167,0.00036339,97927.0,97915.0,0.02012496]
[1738855158168,0.00036339,97927.0,97917.0,0.01885905]
[1738855158641,0.204238,97925.0,97917.0,0.01885905]
[1738855158842,0.00036339,97927.0,97926.0,0.001]
[1738855159015,0.15353839,97927.0,97926.0,0.001]
[1738855159224,0.00036339,97927.0,97926.0,0.001]
[1738855159633,0.00036339,97927.0,97926.0,0.10452475]
[1738855159849,0.00036339,97927.0,97926.0,0.10350365]
[1738855160008,0.00036339,97927.0,97926.0,0.1045246]
[1738855160453,0.00036339,97927.0,97926.0,0.1035246]
[1738855160666,0.00036339,97927.0,97926.0,0.12235303]
[1738855161066,0.00036339,97927.0,97926.0,0.14535303]
[1738855161225,0.00036339,97927.0,97926.0,0.83725303]
[1738855161426,0.00036339,97927.0,97926.0,0.91753208]
[1738855161844,0.00036339,97927.0,97926.0,0.91453208]
[1738855162421,0.00036339,97927.0,97926.0,0.93053208]
[1738855162639,0.00036339,97927.0,97926.0,0.92753208]
[1738855162850,0.00036339,97927.0,97926.0,0.93053208]
[1738855163284,0.00036339,97927.0,97926.0,0.95763425]
[1738855163417,0.00036339,97927.0,97926.0,0.94463425]
[1738855163632,0.00036339,97927.0,97926.0,0.86633425]
[1738855163858,0.00036339,97927.0,97926.0,0.86733425]
[1738855164159,0.00036339,97927.0,97926.0,0.84123208]
[1738855164925,0.00036339,97927.0,97926.0,0.84023208]
[1738855165132,0.00036339,97927.0,97926.0,0.84423208]
[1738855165378,0.00036339,97927.0,97926.0,0.84023208]
[1738855165552,0.23475874,97954.0,97930.0,0.29148398]
[1738855165752,0.08162474,97954.0,97931.0,0.10250365]
[1738855166181,0.15,97964.0,97934.0,0.153163]
[1738855166383,0.00036306,97963.0,97935.0,0.10250365]
[1738855166581,0.00036306,97963.0,97926.0,0.03082843]
[1738855166582,0.01702973,97963.0,97926.0,0.02282843]
[1738855166756,0.153158,97938.0,97932.0,0.01882843]
[1738855166985,0.01702973,97963.0,97933.0,0.10250365]
[1738855167278,0.01702973,97963.0,97933.0,0.10352465]
[1738855167445,0.01702973,97963.0,97950.0,0.29148398]
[1738855167683,0.01702973,97963.0,97959.0,0.153125]
[1738855167888,0.01702973,97963.0,97961.0,0.153121]
[1738855168320,0.01802973,97963.0,97962.0,0.02402071]
[1738855168744,0.01702973,97963.0,97962.0,0.02402071]
[1738855169175,0.01702973,97963.0,97962.0,0.073037]
[1738855169406,0.0148419,97973.0,97968.0,0.153111]
[1738855169682,0.0148419,97973.0,97968.0,0.27963518]
[1738855169957,0.204091,97996.0,97968.0,0.10250365]
[1738855170240,0.15329808,97992.0,97971.0,0.023]
[1738855170514,0.153084,97986.0,97972.0,0.25560665]
[1738855170763,0.153088,97983.0,97972.0,0.10250365]
[1738855170970,0.204109,97987.0,97972.0,0.10250365]
[1738855171182,0.153084,97986.0,97973.0,0.15412154]
[1738855171390,0.00022408,97992.0,97974.0,0.10250365]
[1738855171600,0.00022408,97992.0,97981.0,0.15309]
[1738855171803,0.00022408,97992.0,97982.0,0.10250365]
[1738855172015,0.00022408,97992.0,97983.0,0.153087]
[1738855172189,0.00022408,97992.0,97984.0,0.10250365]
[1738855172399,0.00022408,97983.0,97954.0,0.15]
[1738855172605,0.00022408,97983.0,97980.0,0.153091]
[1738855172815,0.00022408,97983.0,97981.0,0.10250365]
[1738855173021,0.00022408,97983.0,97982.0,0.153089]
[1738855173235,0.00022408,97983.0,97982.0,0.25559265]
[1738855174071,0.00022408,97983.0,97982.0,0.42859265]
[1738855174278,0.00022408,97983.0,97982.0,0.42959265]
[1738855174829,0.00022408,97983.0,97982.0,0.42859265]
[1738855175044,0.00122408,97983.0,97982.0,0.42859265]
[1738855176022,0.00122408,97983.0,97982.0,0.40559265]
[1738855176245,0.00122408,97983.0,97982.0,0.42859265]
[1738855176447,0.00022408,97983.0,97982.0,0.42859265]
[1738855176784,0.00022408,97983.0,97982.0,0.43759265]
[1738855176995,0.00022408,97983.0,97982.0,0.42859265]
[1738855177374,0.00022408,97983.0,97982.0,0.43759265]
[1738855177576,0.00022408,97983.0,97982.0,0.42859265]
[1738855177983,0.00022408,97983.0,97982.0,0.98049265]
[1738855178993,0.00022408,97983.0,97982.0,0.99949265]
[1738855179606,0.00022408,97983.0,97982.0,1.00849265]
[1738855179840,0.00022408,97983.0,97982.0,0.99149265]
[1738855180052,0.00042408,98009.0,97987.0,0.02]
[1738855180260,0.00042408,98009.0,97983.0,0.173]
[1738855180261,0.00088725,98009.0,98008.0,0.326048]
[1738855180466,0.00088725,98009.0,98008.0,0.4487637]
[1738855180873,0.00088725,98009.0,98008.0,1.0768637]
[1738855181084,0.00088725,98009.0,98008.0,1.0888237]
[1738855181283,0.00288725,98009.0,98008.0,1.0888237]
[1738855181483,0.00288725,98009.0,98008.0,1.01287144]
[1738855181886,0.00288725,98009.0,98008.0,1.02287144]
[1738855182108,0.00288725,98009.0,98008.0,1.01287144]
[1738855182325,0.00288725,98009.0,98008.0,1.00091144]
[1738855182512,0.00288725,98009.0,98008.0,1.00791144]
[1738855182711,0.00088725,98009.0,98008.0,1.00091144]
[1738855183175,0.00088725,98009.0,98008.0,1.00491144]
[1738855183588,0.00088725,98009.0,98008.0,1.00091144]
[1738855183813,0.00088725,98009.0,98008.0,1.00991144]
[1738855184096,0.00088725,98009.0,98008.0,1.00091144]
[1738855184446,0.00088725,98009.0,98008.0,1.00591144]
[1738855184852,0.00088725,98009.0,98008.0,0.46401144]
[1738855185754,0.00088725,98009.0,98008.0,0.45901144]
[1738855185974,0.00088725,98009.0,98008.0,0.46801144]
[1738855186184,0.00088725,98009.0,98008.0,0.47301144]
[1738855186586,0.00088725,98009.0,98008.0,0.46801144]
[1738855187006,0.00088725,98009.0,98008.0,0.47301144]
[1738855187242,0.00088725,98009.0,98008.0,0.46401144]
[1738855187449,0.00088725,98009.0,98008.0,0.45901144]
[1738855187626,0.00088725,98009.0,98008.0,0.46801144]
[1738855187829,0.00088725,98009.0,98008.0,0.47301144]
[1738855188056,0.00088725,98009.0,98008.0,0.26955165]
[1738855188375,0.00088725,98009.0,98008.0,0.014]
[1738855189194,0.00088725,98009.0,98008.0,0.167048]
[1738855189389,0.00088725,98009.0,98008.0,0.158048]
[1738855189590,0.00088725,98009.0,98008.0,0.167048]
[1738855189805,0.00088725,98009.0,98008.0,0.162048]
[1738855190020,0.00088725,98009.0,98008.0,0.153048]
[1738855190249,0.00088725,98009.0,98008.0,0.164048]
[1738855190704,0.00088725,98009.0,98008.0,0.161048]
[1738855190916,0.00088725,98009.0,98008.0,0.2645719]
[1738855191133,0.00088725,98009.0,98008.0,0.26555165]
[1738855191739,0.00088725,98009.0,98008.0,0.28855165]
[1738855192361,0.00088725,98009.0,98008.0,0.28655165]
[1738855192566,0.00088725,98009.0,98008.0,0.28955165]
[1738855192771,0.00088725,98009.0,98008.0,0.28155165]
[1738855193184,0.00088725,98009.0,98008.0,0.28755165]
[1738855193393,0.00088725,98009.0,98008.0,0.28155165]
[1738855193779,0.00088725,98009.0,98008.0,0.29055165]
[1738855193975,0.00088725,98009.0,98008.0,0.42855165]
[1738855194318,0.00088725,98009.0,98008.0,0.97445165]
[1738855195164,0.00088725,98009.0,98008.0,0.40955165]
[1738855195578,0.00088725,98009.0,98008.0,0.44155165]
[1738855196910,2.5e-07,98009.0,98008.0,0.99345165]
[1738855197118,2.5e-07,98009.0,98008.0,1.00345165]
[1738855197515,2.5e-07,98009.0,98008.0,0.99345165]
[1738855198199,0.08162474,98043.0,98024.0,0.303023]
[1738855198407,0.00036303,98025.0,98024.0,0.42852665]
[1738855198959,0.00036303,98025.0,98024.0,0.40552665]
[1738855199600,0.00036303,98025.0,98024.0,0.40852665]
[1738855199973,0.00036303,98025.0,98024.0,0.44169803]
[1738855200211,0.08162474,98053.0,98033.0,0.204012]
[1738855200381,0.08162474,98053.0,98035.0,0.153006]
[1738855200713,0.08162474,98053.0,98035.0,0.25550965]
[1738855201133,0.08162474,98053.0,98026.0,0.18882302]
[1738855201343,0.0482,98054.0,98034.0,0.153007]
[1738855201479,0.0482,98054.0,98034.0,0.25551065]
[1738855201480,0.152988,98047.0,98034.0,0.25551065]
[1738855201690,0.203978,98050.0,98034.0,0.25551065]
[1738855201910,0.203978,98050.0,98034.0,0.10250365]
[1738855201911,0.15322887,98036.0,98034.0,0.10250365]
[1738855202118,0.00022387,98036.0,98034.0,0.03]
[1738855202321,0.00022387,98036.0,98035.0,0.153006]
[1738855202565,0.00022387,98036.0,98034.0,0.03]
[1738855202969,0.00022387,98036.0,98034.0,0.032]
[1738855203165,0.00022387,98036.0,98035.0,0.007]
[1738855203525,0.00022387,98036.0,98034.0,0.03]
[1738855203751,0.00022387,98036.0,98034.0,0.039]
[1738855203951,0.00022387,98036.0,98034.0,0.29451065]
[1738855204129,0.00022387,98036.0,98035.0,0.10352359]
[1738855204327,0.00022387,98036.0,98035.0,0.11052359]
[1738855204744,0.00022387,98036.0,98035.0,0.10250365]
[1738855205169,0.00022387,98036.0,98035.0,0.10450365]
[1738855205385,0.00022387,98036.0,98035.0,0.25750965]
[1738855205759,0.00022387,98036.0,98035.0,0.25550965]
[1738855205970,0.00022387,98036.0,98035.0,0.25750965]
[1738855206383,0.00022387,98036.0,98035.0,0.40750965]